lending/lending_fUSD_20240411
["ID","MTS","AMOUNT","RATE_DAILY","PERIOD"]
[322154512,1712855442439,-530.57,0.00030136,2]
[322154513,1712855442448,-500.0,0.00030136,2]
[322154514,1712855442457,-528.41959529,0.00030136,2]
[322154515,1712855442466,-500.0,0.00030136,2]
[322154516,1712855442475,-525.09948972,0.00030136,2]
[322154517,1712855442487,-83.22784097,0.00030136,2]
[322154519,1712855442496,-500.0,0.00030136,2]
[322154521,1712855442505,-500.0,0.00030136,2]
[322154522,1712855442514,-500.0,0.00030136,2]
[322154523,1712855442524,-500.0,0.00030136,2]
[322154524,1712855442533,-1686.53,0.00030136,2]
[322154525,1712855442542,-500.0,0.00030136,2]
[322154526,1712855442552,-548.36164824,0.00030136,2]
[322154527,1712855442561,-500.0,0.00030136,2]
[322154529,1712855442570,-500.0,0.00030136,2]
[322154530,1712855442579,-500.73993548,0.00030136,2]
[322154531,1712855442588,-500.0,0.00030136,2]
[322154532,1712855442598,-500.0,0.00030136,2]
[322154533,1712855442607,-500.0,0.00030136,2]
[322154534,1712855442616,-500.0,0.00030136,2]
[322154535,1712855442625,-742.21,0.00030136,2]
[322154536,1712855442635,-500.0,0.00030136,2]
[322154537,1712855442644,-500.0,0.00030136,2]
[322154538,1712855442652,-500.0,0.00030136,2]
[322154539,1712855442663,-1615.99,0.00030136,2]
[322154540,1712855442673,-500.0,0.00030136,2]
[322154541,1712855442682,-1181.95,0.00030136,2]
[322154542,1712855442692,-500.0,0.00030136,2]
[322154543,1712855442701,-500.0,0.00030136,2]
[322154544,1712855442710,-265.10227017,0.00030136,2]
[322154545,1712855442719,-566.61,0.00030136,2]
[322154546,1712855442728,-558.74,0.00030136,2]
[322154547,1712855442737,-500.0,0.00030136,2]
[322154548,1712855442747,-500.0,0.00030136,2]
[322154549,1712855442757,-1374.21,0.00030136,2]
[322154550,1712855442767,-821.79814008,0.00030136,2]
[322154551,1712855442782,-142.81185992,0.00030136,2]
[322154552,1712855442792,-406.93722235,0.00030136,2]
[322154565,1712855443638,-526.36277765,0.00030136,2]
[322154566,1712855443648,-500.0,0.00030136,2]
[322154567,1712855443659,-500.0,0.00030136,2]
[322154568,1712855443668,-500.0,0.00030136,2]
[322154569,1712855443677,-500.0,0.00030136,2]
[322154570,1712855443687,-500.0,0.00030136,2]
[322154571,1712855443697,-500.0,0.00030136,2]
[322154572,1712855443707,-500.0,0.00030136,2]
[322154573,1712855443717,-500.0,0.00030136,2]
[322154574,1712855443727,-157.80216163,0.00030136,2]
[322154575,1712855443742,-1596.87783837,0.00030136,2]
[322154576,1712855443752,-173.09816163,0.00030136,2]
[322154577,1712855443872,-326.90183837,0.00030136,2]
[322154578,1712855443882,-500.0,0.00030136,2]
[322154579,1712855443892,-500.0,0.00030136,2]
[322154580,1712855443902,-500.0,0.00030136,2]
[322154581,1712855443913,-836.68,0.00030136,2]
[322154582,1712855443923,-500.0,0.00030136,2]
[322154583,1712855443932,-546.56591022,0.00030136,2]
[322154584,1712855443941,-1517.98,0.00030136,2]
[322154585,1712855443950,-500.0,0.00030136,2]
[322154586,1712855443960,-1134.71,0.00030136,2]
[322154587,1712855443969,-500.0,0.00030136,2]
[322154588,1712855443978,-500.0,0.00030136,2]
[322154589,1712855443988,-500.0,0.00030136,2]
[322154590,1712855443997,-555.62,0.00030136,2]
[322154591,1712855444006,-500.0,0.00030136,2]
[322154592,1712855444015,-3795.28,0.00030136,2]
[322154593,1712855444024,-500.0,0.00030136,2]
[322154594,1712855444033,-500.0,0.00030136,2]
[322154595,1712855444042,-1491.65,0.00030136,2]
[322154596,1712855444052,-500.0,0.00030136,2]
[322154597,1712855444061,-500.0,0.00030136,2]
[322154598,1712855444070,-600.68114521,0.00030136,2]
[322154599,1712855444079,-500.0,0.00030136,2]
[322154600,1712855444088,-647.2,0.00030136,2]
[322154601,1712855444098,-559.05,0.00030136,2]
[322154602,1712855444107,-500.0,0.00030136,2]
[322154603,1712855444117,-516.61,0.00030136,2]
[322154604,1712855444126,-500.0,0.00030136,2]
[322154605,1712855444135,-700.1,0.00030136,2]
[322154606,1712855444145,-500.0,0.00030136,2]
[322154607,1712855444154,-500.0,0.00030136,2]
[322154608,1712855444166,-824.72,0.00030136,2]
[322154609,1712855444175,-658.1,0.00030136,2]
[322154610,1712855444185,-500.0,0.00030136,2]
[322154611,1712855444194,-500.0,0.00030136,2]
[322154612,1712855444203,-500.0,0.00030136,2]
[322154613,1712855444213,-1591.51,0.00030136,2]
[322154614,1712855444222,-269.07519245,0.00030136,2]
[322154615,1712855444231,-500.0,0.00030136,2]
[322154616,1712855444241,-500.0,0.00030136,2]
[322154617,1712855444250,-210.05,0.00030136,2]
[322154618,1712855444259,-644.66,0.00030136,2]
[322154619,1712855444269,-505.98968558,0.00030136,2]
[322154620,1712855444277,-500.0,0.00030136,2]
[322154621,1712855444287,-961.92,0.00030136,2]
[322154622,1712855444297,-500.0,0.00030136,2]
[322154623,1712855444306,-300.0,0.00030136,2]
[322154624,1712855444315,-500.0,0.00030136,2]
[322154625,1712855444325,-434.48106713,0.00030136,2]
[322154626,1712855444335,-500.0,0.00030136,2]
[322154627,1712855444344,-619.31,0.00030136,2]
[322154628,1712855444353,-5000.0,0.00030136,2]
[322154629,1712855444363,-533.64202957,0.00030136,2]
[322154630,1712855444372,-500.0,0.00030136,2]
[322154631,1712855444381,-500.0,0.00030136,2]
[322154632,1712855444390,-500.0,0.00030136,2]
[322154633,1712855444400,-500.0,0.00030136,2]
[322154634,1712855444411,-668.85,0.00030136,2]
[322154635,1712855444420,-500.0,0.00030136,2]
[322154636,1712855444429,-500.0,0.00030136,2]
[322154637,1712855444438,-767.0,0.00030136,2]
[322154638,1712855444447,-738.74,0.00030136,2]
[322154639,1712855444457,-748.36,0.00030136,2]
[322154640,1712855444466,-500.0,0.00030136,2]
[322154641,1712855444476,-513.73528044,0.00030136,2]
[322154642,1712855444484,-500.0,0.00030136,2]
[322154643,1712855444493,-2135.78,0.00030136,2]
[322154644,1712855444503,-500.0,0.00030136,2]
[322154645,1712855444512,-500.0,0.00030136,2]
[322154646,1712855444521,-500.0,0.00030136,2]
[322154647,1712855444530,-500.0,0.00030136,2]
[322154648,1712855444540,-500.0,0.00030136,2]
[322154649,1712855444549,-500.0,0.00030136,2]
[322154650,1712855444558,-500.0,0.00030136,2]
[322154651,1712855444567,-500.0,0.00030136,2]
[322154652,1712855444576,-504.82972057,0.00030136,2]
[322154653,1712855444585,-500.0,0.00030136,2]
[322154654,1712855444594,-500.0,0.00030136,2]
[322154655,1712855444604,-551.14,0.00030136,2]
[322154656,1712855444613,-500.0,0.00030136,2]
[322154657,1712855444622,-500.0,0.00030136,2]
[322154658,1712855444631,-1674.39,0.00030136,2]
[322154659,1712855444640,-1500.91,0.00030136,2]
[322154660,1712855444649,-1058.24,0.00030136,2]
[322154661,1712855444660,-500.0,0.00030136,2]
[322154662,1712855444669,-500.0,0.00030136,2]
[322154663,1712855444678,-500.0,0.00030136,2]
[322154664,1712855444687,-6025.82,0.00030136,2]
[322154665,1712855444697,-603.36,0.00030136,2]
[322154666,1712855444706,-631.46,0.00030136,2]
[322154667,1712855444715,-166.57374161,0.00030136,2]
[322154668,1712855444724,-317.90466902,0.00030136,2]
[322154669,1712855444733,-617.43,0.00030136,2]
[322154670,1712855444742,-500.0,0.00030136,2]
[322154671,1712855444751,-500.0,0.00030136,2]
[322154672,1712855444759,-500.0,0.00030136,2]
[322154673,1712855444768,-500.0,0.00030136,2]
[322154674,1712855444778,-3776.29,0.00030136,2]
[322154675,1712855444787,-2531.35,0.00030136,2]
[322154676,1712855444795,-500.0,0.00030136,2]
[322154677,1712855444806,-3169.01,0.00030136,2]
[322154678,1712855444815,-2533.39,0.00030136,2]
[322154679,1712855444824,-500.0,0.00030136,2]
[322154680,1712855444834,-500.0,0.00030136,2]
[322154681,1712855444843,-677.6,0.00030136,2]
[322154682,1712855444852,-500.0,0.00030136,2]
[322154683,1712855444861,-500.0,0.00030136,2]
[322154684,1712855444870,-11389.46,0.00030136,2]
[322154685,1712855444879,-500.0,0.00030136,2]
[322154686,1712855444888,-500.0,0.00030136,2]
[322154687,1712855444898,-2027.13,0.00030136,2]
[322154688,1712855444907,-1483.21,0.00030136,2]
[322154689,1712855444916,-9112.82,0.00030136,2]
[322154690,1712855444926,-581.29,0.00030136,2]
[322154691,1712855444934,-500.0,0.00030136,2]
[322154692,1712855444944,-500.0,0.00030136,2]
[322154693,1712855444953,-521.47642031,0.00030136,2]
[322154694,1712855444962,-500.0,0.00030136,2]
[322154695,1712855444971,-500.0,0.00030136,2]
[322154696,1712855444980,-500.0,0.00030136,2]
[322154697,1712855444989,-500.0,0.00030136,2]
[322154698,1712855444998,-507.06894005,0.00030136,2]
[322154699,1712855445007,-500.0,0.00030136,2]
[322154700,1712855445016,-500.0,0.00030136,2]
[322154701,1712855445025,-67527.2,0.00030136,2]
[322154702,1712855445034,-500.0,0.00030136,2]
[322154703,1712855445043,-1271.86,0.00030136,2]
[322154704,1712855445053,-6849.66,0.00030136,2]
[322154705,1712855445062,-500.0,0.00030136,2]
[322154706,1712855445071,-502.06554399,0.00030136,2]
[322154707,1712855445080,-500.0,0.00030136,2]
[322154708,1712855445090,-536.27644778,0.00030136,2]
[322154709,1712855445101,-3777.28,0.00030136,2]
[322154710,1712855445110,-500.0,0.00030136,2]
[322154711,1712855445119,-500.0,0.00030136,2]
[322154712,1712855445128,-500.0,0.00030136,2]
[322154713,1712855445138,-5085.34,0.00030136,2]
[322154714,1712855445353,-500.0,0.00030136,2]
[322154715,1712855445362,-500.0,0.00030136,2]
[322154716,1712855445372,-500.0,0.00030136,2]
[322154717,1712855445381,-500.0,0.00030136,2]
[322154718,1712855445390,-572.85635404,0.00030136,2]
[322154719,1712855445400,-1472.88,0.00030136,2]
[322154720,1712855445410,-511.98539701,0.00030136,2]
[322154721,1712855445419,-500.0,0.00030136,2]
[322154722,1712855445428,-5118.33,0.00030136,2]
[322154723,1712855445437,-500.0,0.00030136,2]
[322154724,1712855445447,-526.62046044,0.00030136,2]
[322154725,1712855445457,-1667.49,0.00030136,2]
[322154726,1712855445467,-500.0,0.00030136,2]
[322154727,1712855445476,-500.0,0.00030136,2]
[322154729,1712855445487,-806.55,0.00030136,2]
[322154731,1712855445496,-851.26,0.00030136,2]
[322154732,1712855445505,-500.0,0.00030136,2]
[322154733,1712855445514,-4340.19,0.00030136,2]
[322154734,1712855445523,-500.0,0.00030136,2]
[322154735,1712855445532,-1636.3,0.00030136,2]
[322154736,1712855445542,-2685.8,0.00030136,2]
[322154737,1712855445551,-500.0,0.00030136,2]
[322154738,1712855445560,-500.0,0.00030136,2]
[322154739,1712855445569,-500.0,0.00030136,2]
[322154740,1712855445578,-2251.41,0.00030136,2]
[322154741,1712855445588,-500.0,0.00030136,2]
[322154743,1712855445597,-500.0,0.00030136,2]
[322154744,1712855445606,-7825.04,0.00030136,2]
[322154746,1712855445615,-3890.74,0.00030136,2]
[322154747,1712855445624,-4744.95,0.00030136,2]
[322154748,1712855445633,-3771.46,0.00030136,2]
[322154749,1712855445642,-500.0,0.00030136,2]
[322154750,1712855445651,-500.0,0.00030136,2]
[322154753,1712855445661,-500.0,0.00030136,2]
[322154756,1712855445670,-16309.44,0.00030136,2]
[322154759,1712855445679,-1208.62,0.00030136,2]
[322154763,1712855445688,-656.92,0.00030136,2]
[322154767,1712855445697,-500.0,0.00030136,2]
[322154770,1712855445706,-6844.23,0.00030136,2]
[322154773,1712855445715,-500.0,0.00030136,2]
[322154776,1712855445725,-2340.25,0.00030136,2]
[322154779,1712855445734,-1592.6,0.00030136,2]
[322154781,1712855445743,-500.0,0.00030136,2]
[322154783,1712855445752,-500.0,0.00030136,2]
[322154785,1712855445761,-12880.93,0.00030136,2]
[322154786,1712855445770,-500.0,0.00030136,2]
[322154787,1712855445779,-8811.69,0.00030136,2]
[322154788,1712855445788,-500.0,0.00030136,2]
[322154790,1712855445798,-500.0,0.00030136,2]
[322154792,1712855445807,-1881.33,0.00030136,2]
[322154794,1712855445816,-1823.47,0.00030136,2]
[322154796,1712855445825,-549.25,0.00030136,2]
[322154798,1712855445834,-500.0,0.00030136,2]
[322154800,1712855445843,-4635.65,0.00030136,2]
[322154802,1712855445852,-500.0,0.00030136,2]
[322154803,1712855445861,-3335.21,0.00030136,2]
[322154805,1712855445870,-500.0,0.00030136,2]
[322154807,1712855445879,-3930.45,0.00030136,2]
[322154809,1712855445888,-2696.84,0.00030136,2]
[322154811,1712855445898,-500.0,0.00030136,2]
[322154813,1712855445908,-18201.79,0.00030136,2]
[322154815,1712855445917,-500.0,0.00030136,2]
[322154817,1712855445926,-500.0,0.00030136,2]
[322154819,1712855445935,-533.14,0.00030136,2]
[322154821,1712855445944,-500.0,0.00030136,2]
[322154823,1712855445954,-4785.47,0.00030136,2]
[322154825,1712855445963,-5396.38,0.00030136,2]
[322154827,1712855445972,-500.0,0.00030136,2]
[322154829,1712855445982,-2477.24,0.00030136,2]
[322154831,1712855445991,-500.0,0.00030136,2]
[322154834,1712855446000,-3380.21,0.00030136,2]
[322154836,1712855446010,-3871.68,0.00030136,2]
[322154838,1712855446019,-1873.69,0.00030136,2]
[322154840,1712855446028,-4707.31,0.00030136,2]
[322154841,1712855446037,-686.64,0.00030136,2]
[322154843,1712855446046,-1803.77,0.00030136,2]
[322154846,1712855446056,-500.0,0.00030136,2]
[322154847,1712855446065,-500.0,0.00030136,2]
[322154849,1712855446074,-3200.15,0.00030136,2]
[322154851,1712855446084,-504.81,0.00030136,2]
[322154853,1712855446095,-4230.61,0.00030136,2]
[322154854,1712855446106,-13769.66,0.00030136,2]
[322154856,1712855446115,-1783.78,0.00030136,2]
[322154858,1712855446124,-3053.08,0.00030136,2]
[322154859,1712855446134,-8776.05,0.00030136,2]
[322154860,1712855446144,-8157.85,0.00030136,2]
[322154861,1712855446153,-500.0,0.00030136,2]
[322154862,1712855446163,-500.0,0.00030136,2]
[322154863,1712855446173,-5288.97,0.00030136,2]
[322154864,1712855446185,-500.0,0.00030136,2]
[322154865,1712855446195,-1226.88,0.00030136,2]
[322154866,1712855446204,-500.0,0.00030136,2]
[322154867,1712855446213,-500.0,0.00030136,2]
[322154868,1712855446222,-585.73,0.00030136,2]
[322154869,1712855446231,-500.0,0.00030136,2]
[322154870,1712855446240,-914.49,0.00030136,2]
[322154871,1712855446250,-500.0,0.00030136,2]
[322154872,1712855446259,-4522.39,0.00030136,2]
[322154873,1712855446269,-2626.37,0.00030136,2]
[322154874,1712855446278,-5009.64,0.00030136,2]
[322154875,1712855446287,-500.0,0.00030136,2]
[322154876,1712855446297,-2360.81,0.00030136,2]
[322154877,1712855446306,-500.0,0.00030136,2]
[322154878,1712855446315,-500.0,0.00030136,2]
[322154879,1712855446324,-500.0,0.00030136,2]
[322154880,1712855446334,-19778.26,0.00030136,2]
[322154881,1712855446342,-1283.77,0.00030136,2]
[322154882,1712855446352,-500.0,0.00030136,2]
[322154883,1712855446361,-500.0,0.00030136,2]
[322154884,1712855446370,-4321.27,0.00030136,2]
[322154885,1712855446379,-500.0,0.00030136,2]
[322154886,1712855446389,-8777.62,0.00030136,2]
[322154887,1712855446398,-726.89,0.00030136,2]
[322154888,1712855446407,-500.0,0.00030136,2]
[322154889,1712855446417,-3834.51,0.00030136,2]
[322154890,1712855446426,-500.0,0.00030136,2]
[322154891,1712855446435,-500.0,0.00030136,2]
[322154892,1712855446444,-500.0,0.00030136,2]
[322154893,1712855446453,-1130.13,0.00030136,2]
[322154894,1712855446462,-500.0,0.00030136,2]
[322154895,1712855446471,-501.34,0.00030136,2]
[322154896,1712855446480,-4009.72,0.00030136,2]
[322154897,1712855446494,-500.0,0.00030136,2]
[322154898,1712855446503,-9825.91,0.00030136,2]
[322154899,1712855446512,-3630.11,0.00030136,2]
[322154900,1712855446522,-500.0,0.00030136,2]
[322154901,1712855446530,-500.0,0.00030136,2]
[322154902,1712855446539,-500.0,0.00030136,2]
[322154903,1712855446548,-2893.32,0.00030136,2]
[322154904,1712855446557,-1013.67,0.00030136,2]
[322154905,1712855446567,-500.0,0.00030136,2]
[322154906,1712855446576,-500.0,0.00030136,2]
[322154907,1712855446585,-3216.86,0.00030136,2]
[322154908,1712855446595,-284.29228612,0.00030136,2]
[322154909,1712855446604,-4879.77,0.00030136,2]
[322154910,1712855446616,-509.21642673,0.00030136,2]
[322154911,1712855446625,-500.0,0.00030136,2]
[322154912,1712855446634,-952.37,0.00030136,2]
[322154913,1712855446643,-1532.67,0.00030136,2]
[322154914,1712855446653,-355.35701287,0.00030136,2]
[322154915,1712855446663,-33317.91,0.00030136,2]
[322154916,1712855446672,-515.46,0.00030136,2]
[322154917,1712855446682,-3775.27,0.00030136,2]
[322154918,1712855446692,-500.0,0.00030136,2]
[322154919,1712855446701,-7708.84,0.00030136,2]
[322154920,1712855446710,-500.0,0.00030136,2]
[322154921,1712855446719,-500.0,0.00030136,2]
[322154922,1712855446729,-500.0,0.00030136,2]
[322154923,1712855446738,-4054.88,0.00030136,2]
[322154924,1712855446748,-25328.05,0.00030136,2]
[322154925,1712855446757,-500.0,0.00030136,2]
[322154926,1712855446766,-24119.7,0.00030136,2]
[322154927,1712855446776,-1288.27,0.00030136,2]
[322154928,1712855446785,-1259.13,0.00030136,2]
[322154929,1712855446795,-2569.92,0.00030136,2]
[322154930,1712855446804,-539.7756772,0.00030136,2]
[322154931,1712855446813,-1241.26,0.00030136,2]
[322154932,1712855446822,-595.95,0.00030136,2]
[322154933,1712855446832,-13729.95,0.00030136,2]
[322154934,1712855446841,-500.0,0.00030136,2]
[322154935,1712855446851,-500.0,0.00030136,2]
[322154936,1712855446862,-270.21740544,0.00030136,2]
[322154937,1712855446872,-2635.36,0.00030136,2]
[322154938,1712855446883,-3868.15,0.00030136,2]
[322154939,1712855446892,-254.90422389,0.00030136,2]
[322154940,1712855446902,-2987.84,0.00030136,2]
[322154941,1712855446912,-7119.18,0.00030136,2]
[322154942,1712855446922,-500.0,0.00030136,2]
[322154943,1712855446933,-5618.15,0.00030136,2]
[322154944,1712855446942,-579.57030745,0.00030136,2]
[322154945,1712855446951,-539.89,0.00030136,2]
[322154946,1712855446960,-4048.97,0.00030136,2]
[322154947,1712855446969,-500.0,0.00030136,2]
[322154948,1712855446979,-7883.79,0.00030136,2]
[322154949,1712855446988,-842.56,0.00030136,2]
[322154950,1712855446997,-500.0,0.00030136,2]
[322154951,1712855447006,-2691.37,0.00030136,2]
[322154952,1712855447015,-4453.1,0.00030136,2]
[322154953,1712855447025,-3387.0,0.00030136,2]
[322154954,1712855447034,-11531.77,0.00030136,2]
[322154955,1712855447043,-500.0,0.00030136,2]
[322154956,1712855447052,-8348.49,0.00030136,2]
[322154957,1712855447062,-500.0,0.00030136,2]
[322154958,1712855447071,-500.0,0.00030136,2]
[322154959,1712855447080,-500.0,0.00030136,2]
[322154960,1712855447089,-500.0,0.00030136,2]
[322154961,1712855447101,-3810.59,0.00030136,2]
[322154962,1712855447110,-863.89,0.00030136,2]
[322154963,1712855447118,-2308.17,0.00030136,2]
[322154964,1712855447127,-25857.53,0.00030136,2]
[322154965,1712855447138,-500.0,0.00030136,2]
[322154966,1712855447147,-4108.22,0.00030136,2]
[322154967,1712855447157,-500.0,0.00030136,2]
[322154968,1712855447167,-500.0,0.00030136,2]
[322154969,1712855447177,-500.0,0.00030136,2]
[322154970,1712855447186,-9363.78,0.00030136,2]
[322154971,1712855447196,-500.0,0.00030136,2]
[322154972,1712855447205,-500.0,0.00030136,2]
[322154973,1712855447214,-9569.96,0.00030136,2]
[322154974,1712855447223,-500.0,0.00030136,2]
[322154975,1712855447232,-692.08,0.00030136,2]
[322154976,1712855447241,-3943.4,0.00030136,2]
[322154977,1712855447250,-524.57,0.00030136,2]
[322154978,1712855447260,-500.0,0.00030136,2]
[322154979,1712855447269,-500.0,0.00030136,2]
[322154980,1712855447279,-6198.95,0.00030136,2]
[322154981,1712855447289,-2858.57,0.00030136,2]
[322154982,1712855447298,-871.09,0.00030136,2]
[322154983,1712855447307,-5306.84,0.00030136,2]
[322154984,1712855447316,-1658.41,0.00030136,2]
[322154985,1712855447325,-3838.68,0.00030136,2]
[322154986,1712855447334,-500.0,0.00030136,2]
[322154987,1712855447343,-500.0,0.00030136,2]
[322154988,1712855447352,-4111.26,0.00030136,2]
[322154989,1712855447362,-500.0,0.00030136,2]
[322154990,1712855447371,-500.0,0.00030136,2]
[322154991,1712855447380,-500.0,0.00030136,2]
[322154992,1712855447389,-9761.86,0.00030136,2]
[322154993,1712855447398,-5845.1,0.00030136,2]
[322154994,1712855447407,-67489.57,0.00030136,2]
[322154995,1712855447418,-1044.95,0.00030136,2]
[322154996,1712855447428,-500.0,0.00030136,2]
[322154997,1712855447437,-500.0,0.00030136,2]
[322154998,1712855447446,-2312.49,0.00030136,2]
[322154999,1712855447455,-1003.13,0.00030136,2]
[322155000,1712855447465,-500.0,0.00030136,2]
[322155001,1712855447474,-500.0,0.00030136,2]
[322155002,1712855447483,-2278.23,0.00030136,2]
[322155003,1712855447492,-500.0,0.00030136,2]
[322155004,1712855447501,-718.12,0.00030136,2]
[322155005,1712855447510,-9573.97,0.00030136,2]
[322155006,1712855447520,-649.73835669,0.00030136,2]
[322155007,1712855447529,-9465.76,0.00030136,2]
[322155008,1712855447538,-8900.75,0.00030136,2]
[322155009,1712855447547,-500.0,0.00030136,2]
[322155010,1712855447557,-500.0,0.00030136,2]
[322155011,1712855447566,-500.0,0.00030136,2]
[322155012,1712855447575,-500.0,0.00030136,2]
[322155013,1712855447584,-41447.26,0.00030136,2]
[322155014,1712855447594,-500.0,0.00030136,2]
[322155015,1712855447603,-1982.7,0.00030136,2]
[322155016,1712855447611,-500.0,0.00030136,2]
[322155017,1712855447621,-510.59,0.00030136,2]
[322155018,1712855447630,-500.0,0.00030136,2]
[322155019,1712855447640,-2991.93,0.00030136,2]
[322155020,1712855447649,-500.0,0.00030136,2]
[322155021,1712855447660,-3592.63,0.00030136,2]
[322155022,1712855447670,-500.0,0.00030136,2]
[322155023,1712855447681,-500.0,0.00030136,2]
[322155024,1712855447691,-500.0,0.00030136,2]
[322155025,1712855447701,-501.44192657,0.00030136,2]
[322155026,1712855447710,-2454.19,0.00030136,2]
[322155027,1712855447720,-1963.6,0.00030136,2]
[322155028,1712855447729,-2275.14,0.00030136,2]
[322155029,1712855447738,-7039.72,0.00030136,2]
[322155030,1712855447748,-500.0,0.00030136,2]
[322155031,1712855447757,-500.0,0.00030136,2]
[322155032,1712855447766,-651.1,0.00030136,2]
[322155033,1712855447780,-500.0,0.00030136,2]
[322155034,1712855447789,-500.0,0.00030136,2]
[322155035,1712855447798,-500.0,0.00030136,2]
[322155036,1712855447808,-500.0,0.00030136,2]
[322155037,1712855447817,-813.94,0.00030136,2]
[322155038,1712855447827,-1843.26,0.00030136,2]
[322155039,1712855447838,-500.0,0.00030136,2]
[322155040,1712855447849,-3961.14,0.00030136,2]
[322155041,1712855447859,-5257.14,0.00030136,2]
[322155042,1712855447869,-2610.42,0.00030136,2]
[322155043,1712855447878,-500.0,0.00030136,2]
[322155044,1712855447888,-500.0,0.00030136,2]
[322155045,1712855447898,-620.73182049,0.00030136,2]
[322155046,1712855447908,-536.0,0.00030137,2]
[322155047,1712855447918,-511.0,0.00030137,2]
[322155048,1712855447928,-319.6290794,0.00030245,2]
[322155049,1712855447936,-1629.57643574,0.00030286,5]
[322155050,1712855447946,-1589.52660826,0.0003031,2]
[322155051,1712855447954,-177.82696932,0.0003031,2]
[322155052,1712855447964,-454.5945792,0.0003031,2]
[322155053,1712855447974,-463.15,0.00030358,2]
[322155054,1712855447984,-222.0,0.0003038,15]
[322155055,1712855447993,-217.0,0.0003038,15]
[322155056,1712855448003,-222.0,0.0003039,15]
[322155057,1712855448013,-150.5,0.0003039,15]
[322155058,1712855448023,-154.42,0.000304,15]
[322155059,1712855448033,-150.5,0.000304,15]
[322155060,1712855448045,-222.0,0.000304,15]
[322155061,1712855448055,-500.0,0.00030409,2]
[322155062,1712855448064,-283.40538467,0.0003041,2]
[322155063,1712855448074,-702.44,0.0003041,2]
[322155064,1712855448083,-500.0,0.0003041,2]
[322155065,1712855448093,-500.0,0.0003041,2]
[322155066,1712855448106,-500.0,0.0003041,2]
[322155067,1712855448116,-901.49,0.0003041,2]
[322155068,1712855448126,-500.0,0.0003041,2]
[322155069,1712855448136,-507.88,0.0003041,2]
[322155070,1712855448145,-603.96,0.0003041,2]
[322155071,1712855448156,-873.67,0.0003041,2]
[322155072,1712855448168,-761.59,0.0003041,2]
[322155073,1712855448178,-691.94,0.0003041,2]
[322155074,1712855448188,-646.22,0.0003041,2]
[322155075,1712855448198,-500.0,0.0003041,2]
[322155076,1712855448207,-513.87,0.0003041,2]
[322155077,1712855448218,-587.23,0.0003041,2]
[322155078,1712855448227,-500.0,0.0003041,2]
[322155079,1712855448236,-464.25824974,0.0003041,2]
[322155080,1712855448246,-500.0,0.0003041,2]
[322155081,1712855448255,-802.84,0.0003041,2]
[322155082,1712855448266,-500.0,0.0003041,2]
[322155083,1712855448277,-500.0,0.0003041,2]
[322155084,1712855448286,-702.48,0.0003041,2]
[322155085,1712855448295,-830.62,0.0003041,2]
[322155086,1712855448304,-910.26,0.0003041,2]
[322155087,1712855448314,-745.34,0.0003041,2]